bitfinex-derivatives/quotes_ETHF0:USTF0_20251118
["timestamp","ask_amount","ask_price","bid_price","bid_amount"]
[1763442439854,0.00495493,3010.0,3009.4,0.00498313]
[1763442440049,0.37524383,3010.4,3009.6,2.8081741]
[1763442440552,0.37524383,3010.4,3010.2,2.8081741]
[1763442440857,0.00334383,3010.4,3010.2,2.8081741]
[1763442441157,0.00334383,3010.4,3009.4,0.00498313]
[1763442441158,0.37524383,3010.4,3009.4,0.00498313]
[1763442441545,0.3719,3009.6,3009.4,0.00498313]
[1763442441746,0.37524383,3010.4,3009.4,0.00498313]
[1763442442352,0.3719,3009.6,3009.4,0.00498313]
[1763442444051,6.3719,3009.6,3009.0,0.00250258]
[1763442444360,0.3719,3009.6,3009.0,0.00250258]
[1763442444553,0.3719,3009.6,3008.1,2.8081741]
[1763442444749,0.3719,3009.6,3008.1,3.08036269]
[1763442444948,0.3719,3009.6,3008.5,0.00498313]
[1763442445254,0.00498313,3009.2,3008.7,2.8081741]
[1763442445563,0.00498313,3009.2,3008.7,2.81057531]
[1763442447846,0.00334383,3010.4,3008.8,9.8350363]
[1763442448050,0.3719,3011.2,3010.3,2.8081741]
[1763442448857,0.3719,3011.2,3010.4,0.00498313]
[1763442449060,0.37459963,3011.2,3010.4,0.00498313]
[1763442455570,0.37459963,3011.2,3010.4,2.81315723]
[1763442456158,0.37459963,3011.2,3010.4,0.00498313]
[1763442457059,0.37459963,3011.2,3009.7,2.8081741]
[1763442457769,0.333,3010.4,3008.8,2.8081741]
[1763442458166,0.00498313,3009.9,3009.3,0.00498313]
[1763442458363,0.00498313,3009.9,3009.4,2.8081741]
[1763442459469,0.333,3010.4,3009.4,2.8081741]
[1763442460372,0.333,3010.4,3009.3,0.00498313]
[1763442460564,0.333,3010.4,3010.0,2.8081741]
[1763442461765,0.37459963,3011.2,3010.0,2.8081741]
[1763442464974,0.37459963,3011.2,3010.6,2.8081741]
[1763442465366,0.00269963,3011.2,3010.6,2.8081741]
[1763442465573,0.3719,3012.0,3010.7,10.7052833]
[1763442465872,0.3719,3012.0,3011.7,2.8081741]
[1763442466263,0.3719,3012.0,3011.1,2.8081741]
[1763442466459,0.3719,3012.0,3011.1,2.81095116]
[1763442466664,0.37436683,3012.0,3011.1,2.81095116]
[1763442467672,0.37436683,3012.0,3011.7,2.8081741]
[1763442468571,0.37436683,3012.0,3011.1,2.81095116]
[1763442471574,0.333,3011.4,3011.1,2.81095116]
[1763442471768,0.37436683,3012.0,3011.1,2.81095116]
[1763442472464,0.37436683,3012.0,3011.7,2.8081741]
[1763442473264,0.37436683,3012.0,3011.7,3.07185606]
[1763442475978,0.37436683,3012.0,3011.7,2.8081741]
[1763442476865,0.37436683,3012.0,3011.9,1.74791627]
[1763442478370,0.00246683,3012.0,3011.9,1.74791627]
[1763442479677,0.333,3012.8,3011.9,1.74791627]
[1763442479871,0.333,3013.5,3012.7,1.74791627]
[1763442480074,0.333,3013.5,3013.4,1.74791627]
[1763442480677,0.33712929,3013.5,3013.4,1.75107602]
[1763442481374,0.33712929,3013.5,3013.4,0.00315975]
[1763442481682,0.3175,3012.8,3012.2,1.74791627]
[1763442482575,0.3175,3012.8,3012.2,1.75164392]
[1763442482769,0.3175,3012.8,3012.2,0.00871078]
[1763442482770,0.32248313,3012.8,3012.2,0.00871078]
[1763442482973,0.3175,3012.1,3011.7,0.26255492]
[1763442483175,0.3175,3012.1,3011.3,1.17235007]
[1763442483176,0.3175,3012.1,3012.0,1.74791627]
[1763442483375,0.32248313,3012.8,3012.0,3.49583254]
[1763442483679,0.32248313,3012.8,3011.8,1.17235007]
[1763442483884,0.3175,3012.1,3012.0,0.00498313]
[1763442484078,0.3175,3011.4,3011.0,2.92026634]
[1763442484277,0.3175,3011.4,3011.0,1.74791627]
[1763442484977,0.3175,3011.4,3011.0,2.02111567]
[1763442485180,0.3175,3011.4,3011.0,2.02379773]
[1763442486078,0.3175,3011.4,3011.0,0.00268206]
[1763442486477,0.3175,3011.4,3010.9,0.00498313]
[1763442486675,0.3175,3010.4,3010.1,1.17235007]
[1763442486877,0.3175,3010.4,3009.9,1.74791627]
[1763442487077,0.3175,3010.4,3009.9,2.0121299]
[1763442487279,0.3175,3010.4,3010.1,1.74791627]
[1763442487583,0.3175,3011.4,3010.3,1.74791627]
[1763442487780,0.3175,3011.4,3011.3,1.74791627]
[1763442487986,0.3175,3011.4,3011.1,1.74791627]
[1763442488577,0.32030839,3011.4,3011.1,1.74791627]
[1763442489780,0.00498313,3011.6,3011.1,1.74791627]
[1763442489982,0.3175,3012.1,3011.1,1.74791627]
[1763442489983,0.3175,3012.1,3011.5,1.74791627]
[1763442490180,0.3175,3012.8,3012.0,1.74791627]
[1763442490380,0.3175,3012.1,3011.8,1.17688134]
[1763442490590,0.3175,3012.1,3011.8,1.74791627]
[1763442490788,0.32133994,3012.1,3011.8,1.74791627]
[1763442491180,0.32133994,3012.1,3011.6,0.00498313]
[1763442491987,0.3175,3011.2,3010.9,2.92479761]
[1763442492384,0.3175,3011.2,3010.7,1.17688134]
[1763442492586,0.3175,3010.4,3010.1,0.00312252]
[1763442494490,0.3175,3009.6,3009.0,2.92479761]
[1763442494684,0.3175,3009.6,3009.4,1.74791627]
[1763442494884,0.3175,3010.4,3009.4,1.74791627]
[1763442495084,0.3175,3010.4,3009.8,1.74791627]
[1763442495486,0.3175,3010.4,3009.8,1.75675359]
[1763442495487,0.32004047,3010.4,3009.8,1.75675359]
[1763442495686,0.32004047,3010.4,3009.8,0.00883732]
[1763442496290,0.3175,3009.6,3009.1,1.74791627]
[1763442497387,0.3175,3009.6,3009.1,1.75083192]
[1763442499092,0.3175,3009.6,3009.1,0.00291565]
[1763442499598,0.2954,3008.8,3008.5,1.74791627]
[1763442500592,0.2954,3008.8,3008.5,2.0160636]
[1763442500896,0.00498313,3009.0,3008.5,2.0160636]
[1763442501107,0.3175,3009.6,3008.9,1.74791627]
[1763442501308,0.3175,3009.6,3009.3,1.74791627]
[1763442502595,0.3175,3009.6,3008.5,1.44502867]
[1763442502896,0.3175,3009.6,3009.0,1.74791627]
[1763442503200,0.3175,3009.6,3008.5,0.26814733]
[1763442503403,0.3175,3009.6,3008.9,1.74791627]
[1763442504906,0.3175,3009.6,3009.3,1.74791627]
[1763442508714,0.3175,3009.6,3009.1,1.74791627]
[1763442510210,0.3175,3009.6,3009.5,1.74791627]
[1763442511814,0.00254047,3010.4,3009.5,7.74791627]
[1763442512015,0.3081,3012.1,3009.5,7.74791627]
[1763442512016,0.3081,3012.1,3010.3,1.74791627]
[1763442512214,0.3081,3012.1,3009.7,1.17688134]
[1763442512215,0.3081,3012.1,3011.0,1.74791627]
[1763442513012,0.29823022,3011.4,3011.0,1.75077017]
[1763442514115,0.29823022,3011.4,3011.0,0.0028539]
[1763442514313,0.29823022,3011.4,3010.9,0.00498313]
[1763442514507,0.29823022,3011.4,3010.9,1.7528994]
[1763442514908,0.29823022,3011.4,3010.9,0.00498313]
[1763442515309,0.29823022,3011.4,3010.9,0.00921755]
[1763442515619,0.29823022,3011.4,3010.9,1.75713382]
[1763442516621,0.29823022,3011.4,3010.9,0.00921755]
[1763442517316,0.3081,3010.7,3010.1,1.74791627]
[1763442518318,0.3081,3010.7,3010.1,1.75562286]
[1763442521828,0.0456563,3010.4,3010.1,1.75562286]
[1763442522019,0.0456563,3010.4,3010.1,0.00770659]
[1763442522929,0.0456563,3010.3,3010.1,0.00770659]
[1763442523521,0.0456563,3010.3,3010.2,1.74791627]
[1763442523824,0.0456563,3010.3,3010.1,0.00770659]
[1763442524028,0.3081,3010.0,3009.4,2.92479761]
[1763442524231,0.3081,3010.0,3009.4,1.74791627]
[1763442524421,0.3081,3010.0,3009.8,1.74791627]
[1763442525022,0.0456563,3009.9,3009.8,1.75064741]
[1763442525428,0.3081,3010.0,3009.8,1.75064741]
[1763442528523,0.00498313,3010.2,3009.8,1.75064741]
[1763442528728,0.00498313,3010.2,3009.8,0.00273114]
[1763442528729,0.3081,3010.0,3009.8,0.00273114]
[1763442529533,0.00498313,3010.2,3009.8,0.00273114]
[1763442529730,0.00498313,3010.2,3010.1,1.74791627]
[1763442529927,0.31308313,3010.2,3010.1,1.74791627]
[1763442531839,0.83408313,3010.2,3010.1,1.74791627]
[1763442532139,0.83408313,3010.2,3009.8,0.00273114]
[1763442533330,0.31308313,3010.2,3010.0,1.74791627]
[1763442533535,0.521,3010.1,3010.0,1.74791627]
[1763442534631,0.521,3010.1,3009.8,0.00273114]
[1763442534833,0.521,3009.9,3009.8,0.00273114]
[1763442535431,0.12176771,3009.9,3009.8,0.00273114]
[1763442536735,0.16742401,3009.9,3009.8,0.00273114]
[1763442537337,0.0456563,3009.9,3009.8,1.75064741]
[1763442537536,0.4850563,3009.9,3009.8,0.00273114]
[1763442539240,0.0456563,3009.9,3009.8,0.00273114]
[1763442540734,0.4850563,3009.9,3009.8,0.00273114]
[1763442541339,0.4850563,3009.9,3008.9,1.75273653]
[1763442541340,0.7066,3009.0,3008.9,1.75273653]
[1763442541538,0.7066,3008.4,3007.6,2.37546515]
[1763442541729,0.2672,3007.8,3007.1,4.35946936]
[1763442541934,0.2672,3007.2,3007.1,1.98400421]
[1763442542337,0.27050607,3007.2,3007.1,0.00384218]
[1763442542841,0.31616237,3007.2,3007.1,0.00384218]
[1763442543750,0.2672,3007.8,3007.1,0.00384218]
[1763442544040,0.2672,3007.8,3007.7,1.98400421]
[1763442544844,0.27097589,3007.8,3007.4,0.00498312]
[1763442545534,0.27097589,3007.8,3007.6,1.98400421]
[1763442546741,0.27097589,3007.8,3007.4,0.00498312]
[1763442547740,0.2672,3007.2,3007.1,0.00384218]
[1763442548244,0.2672,3007.2,3007.1,1.98784639]
[1763442549144,0.2672,3007.2,3005.6,2.37546515]
[1763442549334,0.2672,3007.2,3006.6,1.98400421]
[1763442550146,0.2672,3007.2,3006.6,1.98782893]
[1763442550739,0.2672,3007.2,3007.1,1.98400421]
[1763442551249,0.2672,3007.2,3006.6,1.98782893]
[1763442551540,0.27097589,3007.8,3007.1,1.98400421]
[1763442551744,0.27097589,3007.8,3007.6,1.98400421]
[1763442552346,0.2672,3007.2,3006.6,0.00382472]
[1763442552546,0.2672,3007.2,3006.8,1.98400421]
[1763442552851,0.27097589,3007.8,3006.8,1.98400421]
[1763442553543,0.27097589,3007.8,3007.3,1.98400421]
[1763442554743,0.27097589,3007.8,3006.6,0.00382472]
[1763442555047,0.2672,3007.2,3006.9,1.98400421]
[1763442555446,0.27097589,3007.8,3007.0,6.0]
[1763442555644,0.27097589,3007.8,3007.5,1.98400421]
[1763442555846,0.27097589,3007.8,3007.1,1.98400421]
[1763442556047,0.2672,3007.2,3006.6,0.00382472]
[1763442556953,0.4394,3006.7,3006.6,0.00382472]
[1763442557842,0.2672,3006.0,3004.7,2.37546515]
[1763442558048,0.2672,3006.0,3005.5,1.98400421]
[1763442558450,0.2672,3006.0,3005.6,1.98400421]
[1763442558959,0.2672,3006.0,3005.6,0.0036706]
[1763442559154,0.2672,3006.0,3004.3,2.37546515]
[1763442559155,0.2672,3006.0,3005.3,1.98400421]
[1763442559548,0.2672,3006.0,3005.3,2.25714478]
[1763442560256,0.2672,3006.0,3005.3,2.25956812]
[1763442560653,0.2672,3006.0,3005.3,0.27556391]
[1763442560848,0.2672,3006.0,3005.8,1.98400421]
[1763442563451,0.2672,3006.0,3005.3,0.27556391]
[1763442563653,0.2672,3006.0,3005.7,1.98400421]
[1763442566458,0.2672,3006.0,3005.3,2.25956812]
[1763442567344,0.2672,3006.0,3005.8,1.98400421]
[1763442568550,0.2672,3006.6,3005.8,1.98400421]
[1763442568757,0.7456,3006.6,3006.5,1.98400421]
[1763442569059,0.7456,3006.6,3006.0,1.98400421]
[1763442569555,0.27218313,3006.6,3006.0,1.98898734]
[1763442569754,0.27218313,3006.6,3006.5,1.98400421]
[1763442570451,0.2625,3006.6,3006.3,1.98400421]
[1763442574061,0.4784,3006.4,3006.3,1.98400421]
[1763442574260,0.4784,3006.4,3006.0,0.00498313]
[1763442574453,0.2625,3006.6,3006.0,0.00498313]
[1763442575056,0.4784,3006.1,3006.0,0.00498313]
[1763442575356,0.7409,3005.4,3005.3,0.00242334]
[1763442575564,0.7409,3005.4,3004.5,1.98400421]
[1763442575763,0.2625,3005.4,3005.0,1.98400421]
[1763442576154,0.2625,3005.4,3004.5,0.2638973]
[1763442576155,0.2625,3004.8,3004.5,2.24790151]
[1763442576559,0.26512554,3004.8,3004.5,2.25077016]
[1763442577662,0.00262554,3004.8,3004.5,2.25077016]
[1763442580158,0.2625,3005.4,3004.5,2.25077016]
[1763442580456,0.2625,3005.4,3005.3,1.98400421]
[1763442580966,0.2625,3005.4,3004.5,0.26676595]
[1763442581271,0.4784,3004.9,3004.8,1.98400421]
[1763442581459,0.00499168,3005.3,3004.8,1.98400421]
[1763442581860,0.00499168,3005.3,3004.5,0.26676595]
[1763442582063,0.00499168,3005.3,3004.5,0.00286865]
[1763442582064,0.4784,3004.6,3004.5,0.00286865]
[1763442582369,0.2625,3004.2,3003.5,11.987]
[1763442582666,0.2625,3004.2,3003.3,1.98400421]
[1763442582967,0.2625,3004.2,3003.6,0.27279764]
[1763442583365,0.2625,3004.2,3003.7,0.03698117]
[1763442586361,0.4784,3003.8,3003.7,0.03698117]
[1763442589562,0.2625,3004.2,3003.7,0.03698117]
[1763442593964,0.4784,3003.8,3003.7,0.03698117]
[1763442598769,0.2634,3003.0,3002.1,5.23629002]
[1763442598972,0.2634,3003.0,3002.9,1.75843501]
[1763442599176,0.6794,3003.0,3002.9,2.0312743]
[1763442599660,0.68216291,3003.0,3002.9,1.76214877]
[1763442600268,0.68216291,3003.0,3002.9,0.00371376]
[1763442600474,0.416,3002.4,3002.2,1.75843501]
[1763442600672,0.416,3002.3,3002.2,1.75843501]
[1763442600869,0.2634,3002.5,3002.2,1.75843501]
[1763442601071,0.2634,3002.5,3002.2,2.02572378]
[1763442601376,0.416,3002.3,3001.3,1.75344138]
[1763442601575,0.2634,3002.5,3001.9,1.75843501]
[1763442601782,0.2634,3002.5,3002.4,1.75843501]
[1763442601968,0.6794,3002.5,3001.5,1.75843501]
[1763442602288,0.26616291,3003.0,3002.3,1.75843501]
[1763442602471,0.68216291,3003.0,3002.9,1.75843501]
[1763442602667,0.26616291,3003.0,3002.9,1.75843501]
[1763442602977,0.68216291,3003.0,3002.9,1.75843501]
[1763442603374,0.26616291,3003.0,3002.9,1.75843501]
[1763442604078,0.68216291,3003.0,3002.9,1.75843501]
[1763442604580,0.26616291,3003.0,3002.9,1.75843501]
[1763442604770,0.00276291,3003.0,3002.9,1.75843501]
[1763442604969,0.7279298,3003.0,3002.9,1.75843501]
[1763442605172,0.3119298,3003.0,3002.2,1.75344138]
[1763442605372,0.3119298,3003.0,3002.4,1.75843501]
[1763442605671,0.3119298,3003.0,3002.8,1.75843501]
[1763442605868,0.00276291,3003.0,3002.8,1.75843501]
[1763442606078,0.04576689,3002.9,3002.8,1.75843501]
[1763442606280,0.00276291,3003.0,3002.8,1.75843501]
[1763442606481,0.00276291,3003.0,3002.3,1.75344138]
[1763442606778,0.00276291,3003.0,3002.9,1.75843501]
[1763442606979,0.2634,3003.6,3002.9,3.51687002]
[1763442607168,0.2634,3003.6,3003.5,1.75843501]
[1763442607371,0.2634,3004.0,3003.5,1.75843501]
[1763442607580,0.2634,3004.8,3003.9,1.75843501]
[1763442607774,0.416,3004.4,3004.3,1.75843501]
[1763442607984,0.41888433,3004.4,3004.3,1.7612041]
[1763442608488,0.00288433,3004.4,3004.3,1.7612041]
[1763442608786,0.41888433,3004.4,3004.3,1.7612041]
[1763442609287,0.416,3004.1,3004.0,0.00499168]
[1763442609790,0.2634,3004.2,3004.0,0.00499168]
[1763442610179,0.00288433,3004.4,3004.0,0.00499168]
[1763442610379,0.00288433,3004.4,3004.3,1.75843501]
[1763442610580,0.00288433,3004.4,3004.3,1.76185801]
[1763442610977,0.2634,3005.4,3004.3,1.76185801]
[1763442611180,0.2634,3005.4,3004.7,1.75843501]
[1763442611381,0.2634,3005.4,3005.2,1.75843501]
[1763442611581,0.416,3005.3,3005.2,1.75843501]
[1763442611976,0.4194627,3005.3,3005.2,1.75843501]
[1763442612386,0.01963027,3005.3,3005.2,1.75843501]
[1763442612579,0.0034627,3005.3,3005.2,1.75843501]
[1763442612888,0.2634,3004.8,3004.4,1.75843501]
[1763442613184,0.2634,3004.8,3004.3,0.003423]
[1763442613185,0.416,3004.5,3004.3,0.003423]
[1763442613381,0.416,3004.4,3004.3,0.003423]
[1763442614178,0.416,3003.7,3003.6,1.75843501]
[1763442614982,0.2634,3003.6,3003.2,1.75843501]
[1763442615182,0.2634,3003.6,3003.2,2.03395373]
[1763442615386,0.2634,3003.6,3003.2,1.76114336]
[1763442616279,0.2634,3003.6,3003.2,2.02718475]
[1763442616583,0.416,3003.3,3003.2,0.00270835]
[1763442616785,0.416,3003.3,3003.2,1.76114336]
[1763442616994,0.2634,3003.6,3003.2,1.76114336]
[1763442617407,0.2634,3003.6,3003.2,2.02320201]
[1763442618112,0.00499168,3003.7,3003.2,2.02320201]
[1763442618309,0.2634,3004.2,3003.6,1.99473501]
[1763442618613,0.6794,3004.2,3004.1,1.75843501]
[1763442619010,0.6794,3004.2,3003.7,1.75843501]
[1763442619211,0.416,3003.8,3003.4,1.75843501]
[1763442620117,0.4176,3003.5,3003.4,1.75843501]
[1763442620805,0.252,3003.6,3003.4,1.75843501]
[1763442621008,0.4176,3003.5,3003.4,1.75843501]
[1763442621215,0.4176,3003.5,3003.2,0.264767]
[1763442621410,0.4176,3003.5,3003.4,1.75843501]
[1763442621616,0.4176,3003.3,3003.2,0.00270835]
[1763442622211,0.00499168,3003.9,3003.2,0.17870835]
[1763442622409,0.252,3003.6,3003.5,1.75843501]
[1763442622821,0.00499168,3003.9,3003.5,1.93443501]
[1763442623120,0.2634,3004.8,3003.8,0.176]
[1763442623319,0.4176,3004.7,3004.6,1.75843501]
[1763442624218,0.4176,3004.7,3004.2,1.75843501]
[1763442624519,0.4176,3004.7,3004.1,1.75843501]
[1763442625816,0.252,3004.2,3004.1,1.75843501]
[1763442626122,0.2634,3004.8,3004.1,1.75843501]
[1763442627115,0.2634,3004.8,3004.5,1.75843501]
[1763442628218,0.2634,3004.8,3004.1,1.75843501]
[1763442628518,0.6255,3004.2,3003.5,1.75344138]
[1763442628725,0.6255,3004.2,3003.3,1.75843501]
[1763442629023,0.6255,3004.2,3003.7,1.75843501]
[1763442629217,0.6255,3004.2,3004.1,1.75843501]
[1763442629421,0.2449,3004.2,3004.1,1.75843501]
[1763442631019,0.2634,3004.8,3004.1,1.90523501]
[1763442632925,0.6255,3004.2,3003.7,1.75843501]
[1763442633322,0.2634,3004.8,3004.1,1.90523501]
[1763442633628,0.2634,3004.8,3004.5,1.75843501]
[1763442634330,0.0034627,3005.3,3004.9,0.1468]
[1763442634518,0.0034627,3005.3,3005.2,1.90523501]
[1763442639731,0.3806,3005.0,3004.9,0.00499168]
[1763442639928,0.0034627,3005.3,3004.9,0.00499168]
[1763442640125,0.0034627,3005.3,3005.2,1.90523501]
[1763442640733,0.0034627,3005.3,3005.2,1.75843501]
[1763442641832,0.0034627,3005.3,3005.2,1.90523501]
[1763442642625,0.00499168,3005.6,3005.2,1.90523501]
[1763442642825,0.00499168,3005.6,3005.5,0.1468]
[1763442643630,0.2449,3006.6,3005.5,0.1468]
[1763442643828,0.00329765,3005.6,3005.5,0.15028542]
[1763442644233,0.2449,3006.6,3005.5,0.15028542]
[1763442644429,0.2449,3006.6,3005.9,0.1468]
[1763442644632,0.24989168,3006.6,3005.9,0.1468]
[1763442644834,0.24989168,3006.6,3006.4,1.75843501]
[1763442645034,0.00499168,3006.6,3006.5,0.1468]
[1763442645234,0.00284885,3006.6,3006.5,0.1468]
[1763442645436,0.00284885,3006.6,3006.5,0.41046486]
[1763442645636,0.00284885,3006.6,3006.5,0.1468]
[1763442646238,0.00330787,3006.9,3006.5,0.1468]
[1763442646437,0.6255,3007.2,3006.7,1.75843501]
[1763442647530,0.62970743,3007.2,3006.7,1.75843501]
[1763442648339,0.3806,3006.8,3006.7,1.75843501]
[1763442649547,0.24910743,3007.2,3006.7,1.75843501]
[1763442650040,0.24910743,3007.2,3007.1,1.90523501]
[1763442651941,0.2449,3007.8,3007.1,1.90523501]
[1763442652234,0.3806,3007.4,3007.1,1.75843501]
[1763442652438,0.2449,3007.8,3006.6,1.76342669]
[1763442652439,0.6255,3007.2,3006.6,1.76342669]
[1763442652841,0.62853915,3007.2,3006.6,1.76342669]
[1763442653440,0.00303915,3007.2,3007.1,0.1468]
[1763442653742,0.2449,3007.8,3007.1,0.1468]
[1763442653935,0.2449,3007.8,3007.7,1.90523501]
[1763442654443,0.2449,3007.8,3007.7,1.75843501]
[1763442654745,0.6255,3008.4,3007.7,0.00294933]
[1763442654934,0.6255,3008.4,3007.7,1.76138434]
[1763442655337,0.6255,3008.4,3008.1,1.75843501]
[1763442655338,0.2449,3008.4,3008.1,1.75843501]
[1763442655639,0.24889808,3008.4,3008.1,1.75843501]
[1763442656336,0.24889808,3008.4,3008.3,0.1439]
[1763442656337,0.00399808,3008.4,3008.3,0.1439]
[1763442656536,0.2449,3009.6,3008.9,0.1439]
[1763442656739,0.2449,3009.0,3008.9,0.00499168]
[1763442656937,0.6079,3009.0,3008.9,0.00499168]
[1763442657541,0.61094812,3009.0,3008.9,0.00499168]
[1763442657741,0.24794812,3009.0,3008.9,0.00499168]
[1763442658541,0.61094812,3009.0,3008.9,0.00499168]
[1763442658840,0.61094812,3009.0,3007.8,1.98608265]
[1763442658841,6.61094812,3009.0,3007.8,1.98608265]
[1763442659043,0.61094812,3009.0,3007.8,1.98608265]
[1763442660040,0.00499168,3008.7,3008.1,0.00499168]
[1763442660240,0.00499168,3008.7,3008.6,0.0323]
[1763442660544,0.00499168,3008.7,3008.1,0.00499168]
[1763442660741,0.363,3008.2,3008.1,0.00499168]
[1763442660939,0.2192,3008.5,3008.4,0.0323]
[1763442661142,0.00499168,3008.7,3008.4,0.0323]
[1763442661342,0.24794812,3009.0,3008.9,0.0323]
[1763442661544,0.2449,3009.6,3008.9,0.0323]
[1763442662537,0.24796881,3009.6,3008.9,0.0323]
[1763442662742,0.24796881,3009.6,3009.5,0.0323]
[1763442662940,0.2192,3010.5,3009.9,0.0323]
[1763442663143,0.2192,3010.5,3009.9,0.00498306]
[1763442663643,0.363,3010.0,3009.9,0.00498306]
[1763442663843,0.36558894,3010.0,3009.9,0.0083006]
[1763442664043,0.36558894,3010.0,3008.6,1.98608265]
[1763442664251,0.36558894,3010.0,3009.1,1.98608265]
[1763442665146,0.2192,3009.6,3009.2,0.00498306]
[1763442665553,0.363,3009.3,3009.2,0.00498306]
[1763442665848,0.2192,3009.6,3009.2,0.00498306]
[1763442666345,0.363,3009.3,3009.2,0.00498306]
[1763442666549,0.363,3009.2,3009.1,2.363e-05]
[1763442666743,0.363,3009.2,3007.9,1.98608265]
[1763442666945,0.2192,3009.6,3008.4,1.98608265]
[1763442667650,0.2192,3009.6,3008.7,0.00498306]
[1763442669246,0.2192,3009.0,3008.7,0.00498306]
[1763442669553,0.363,3008.8,3008.7,0.00498306]
[1763442670554,0.363,3008.8,3008.4,0.00411723]
[1763442670755,0.363,3008.5,3008.4,0.00411723]
[1763442670948,0.2192,3009.0,3008.4,0.05041723]
[1763442671153,0.2192,3009.0,3008.4,0.00411723]
[1763442671454,0.363,3008.5,3008.4,0.00411723]
[1763442671748,0.2192,3009.0,3008.4,0.05041723]
[1763442672546,0.2192,3009.0,3008.4,0.00411723]
[1763442672959,0.00495431,3009.9,3009.5,0.0463]
[1763442673148,0.2192,3010.5,3009.9,0.0463]
[1763442674243,0.00498306,3010.3,3009.9,0.0463]
[1763442674648,0.00498306,3010.3,3009.6,0.00498306]
[1763442675255,0.00498306,3010.3,3009.9,0.0463]
[1763442676457,0.00498306,3010.3,3009.6,0.00498306]
[1763442679154,0.363,3009.7,3009.6,0.00498306]
[1763442680261,0.00498306,3010.3,3009.6,0.00498306]
[1763442681064,0.3256,3009.7,3009.6,0.00498306]
[1763442681652,0.2,3009.6,3008.5,1.98608265]
[1763442681852,0.2,3009.0,3008.5,1.98608265]
[1763442682054,0.2,3009.0,3008.4,0.00411723]
[1763442682558,0.05202492,3008.7,3008.4,0.00411723]
[1763442683763,0.05202492,3008.6,3008.4,0.00411723]
[1763442684263,0.2,3009.0,3008.5,1.98608265]
[1763442684762,0.75086567,3009.5,3008.5,1.98608265]
[1763442684964,0.2,3009.6,3008.5,1.98608265]
[1763442684965,0.75086567,3009.4,3008.5,1.98608265]
[1763442685152,0.75086567,3009.3,3008.5,1.98608265]
[1763442685358,0.2,3009.6,3008.5,1.98608265]
[1763442686162,0.2,3009.6,3008.4,0.00411723]
[1763442686756,0.95154378,3009.6,3008.4,0.00411723]
[1763442686957,0.2032,3009.0,3008.4,0.00411723]
[1763442687661,0.75154378,3009.5,3008.8,1.98608265]
[1763442687860,0.75154378,3009.4,3008.8,1.98608265]
[1763442688069,0.2,3009.6,3008.8,1.98608265]
[1763442688576,0.2,3009.6,3009.3,1.98608265]
[1763442688865,0.00258894,3010.0,3009.3,1.98608265]
[1763442691569,0.2032,3009.6,3008.9,1.98608265]
[1763442691768,0.0457429,3009.7,3008.9,1.98608265]
[1763442692069,0.0457429,3009.7,3009.4,1.98608265]
[1763442692670,0.0457429,3009.6,3009.4,1.98608265]
[1763442692872,0.00258894,3010.0,3009.4,1.98608265]
[1763442693168,0.00258894,3010.0,3009.9,1.98608265]
[1763442693769,0.00258894,3010.0,3009.3,8.357]
[1763442693960,0.00258894,3010.0,3009.6,1.98608265]
[1763442694156,0.00498306,3010.3,3009.6,1.98608265]
[1763442694770,0.00498306,3010.3,3009.1,1.98608265]
[1763442695173,0.00779358,3010.3,3009.1,1.98608265]
[1763442696872,0.00779358,3010.3,3009.6,1.98608265]
[1763442697771,0.00779358,3010.3,3009.3,1.98608265]
[1763442698868,0.00779358,3010.3,3009.8,1.98608265]
[1763442699273,0.00779358,3010.3,3009.7,0.00498306]
[1763442700775,0.00779358,3010.3,3009.8,1.98608265]
[1763442703174,0.3332,3009.8,3009.7,0.00498306]
[1763442703371,0.2032,3010.0,3009.7,0.00498306]
[1763442703771,0.2032,3011.0,3009.8,1.98608265]
[1763442704073,1.78626445,3012.8,3010.9,3.9721653]
[1763442704272,0.2032,3013.0,3012.7,1.98608265]
[1763442704570,0.2032,3012.5,3011.7,1.98608265]
[1763442704769,0.2032,3012.5,3011.2,1.98608265]
[1763442704972,0.3332,3011.9,3011.8,0.00498306]
[1763442705371,0.3332,3011.8,3011.2,1.98608265]
[1763442705566,0.3332,3011.3,3010.7,1.98608265]
[1763442705766,0.2032,3011.4,3010.7,1.98608265]
[1763442705966,0.2032,3012.0,3011.2,1.98608265]
[1763442706173,0.2032,3012.0,3011.9,1.98608265]
[1763442706571,0.00498306,3012.4,3011.9,1.99039943]
[1763442707162,0.2032,3012.0,3011.9,1.99039943]
[1763442707672,0.2032,3012.0,3011.9,0.00431678]
[1763442707872,0.5364,3012.0,3011.9,0.00431678]
[1763442709371,0.5820602,3012.0,3011.9,0.00431678]
[1763442709768,0.2032,3011.4,3010.5,1.16504028]
[1763442710072,0.2032,3010.8,3009.9,1.98608265]
[1763442710272,0.2032,3010.8,3009.9,0.26100867]
[1763442710473,0.0456602,3010.4,3010.0,1.98608265]
[1763442710871,0.0456602,3010.4,3010.0,1.98913945]
[1763442711470,0.0456602,3010.2,3010.0,1.98913945]
[1763442711671,0.0496128,3010.2,3010.0,1.98913945]
[1763442712378,0.0496128,3010.2,3010.0,0.0030568]
[1763442712379,0.3332,3010.1,3010.0,0.0030568]
[1763442712573,0.3788602,3010.1,3010.0,0.0030568]
[1763442714469,0.3332,3010.0,3009.0,1.16504028]
[1763442714667,0.0456602,3009.5,3008.8,1.98608265]
[1763442714882,0.0456602,3009.5,3008.8,2.25266909]
[1763442715571,0.0456602,3009.5,3008.8,2.26033538]
[1763442715783,0.0456602,3009.2,3008.8,2.26033538]
[1763442716781,0.2032,3009.6,3008.8,2.26033538]
[1763442717979,0.2032,3009.6,3009.3,1.98608265]
[1763442718180,0.2032,3009.6,3008.9,1.98608265]
[1763442718783,0.2121,3009.0,3008.9,1.98608265]
[1763442719479,0.2121,3009.0,3008.8,0.00766629]
[1763442720182,0.2121,3009.0,3008.8,0.27186926]
[1763442720583,0.2121,3009.0,3008.8,2.25795191]
[1763442720785,0.2121,3009.0,3008.9,1.75122218]
[1763442720982,0.3506,3008.9,3008.8,0.00498306]
[1763442721184,0.2121,3007.8,3007.6,0.27342607]
[1763442721387,0.2121,3007.8,3007.3,1.75122218]
[1763442721574,0.2121,3007.2,3006.8,1.75122218]
[1763442722081,0.00256311,3007.2,3006.8,1.75472351]
[1763442722278,0.21466311,3007.2,3007.0,1.75122218]
[1763442722980,0.21466311,3007.2,3007.0,2.01891129]
[1763442723383,0.2121,3007.8,3007.0,2.01891129]
[1763442723584,0.2121,3007.8,3007.7,1.75122218]